[Event "1000 GM Labor Day Super Swiss 2024"]
[Site "San Jose"]
[Date "2024.08.31"]
[Round "1.1"]
[White "Wu, Derek"]
[Black "Yoo, Christopher Woojin"]
[Result "0-1"]
[Annotator "TA"]
[ECO "A57"]
[WhiteElo "2278"]
[BlackElo "2616"]
[PlyCount "58"]
[EventDate "2024.08.30"]
[EventCountry "USA"]
[SourceTitle "playchess.com"]
[Source "ChessBase"]
[SourceQuality "1"]
[TimeControl "5400+30"]

{[%evp 15,58,24,69,23,34,23,36,0,0,0,0,14,57,0,70,0,0,3,109,0,0,0,77,70,78,4,9,-94,-85,-138,-153,-217,-228,-283,-155,-147,-115,-127,-125,-479,-489,-506,-502,-487,-499]} 1. d4 {[%emt 0:04:00]} Nf6 {[%emt 0:00:19]} 2. c4 {[%emt 0:00:08]} c5 {[%emt 0:02:36]} 3. d5 {[%emt 0:00:07]} b5 {[%emt 0:00:02]} 4. cxb5 {[%emt 0:00:09]} a6 {[%emt 0:00:04]} 5. e3 {[%emt 0:04:06]} g6 {[%emt 0:00:11]} 6. Nc3 {[%emt 0:00:13]} Bg7 {[%emt 0:00:09]} 7. Nf3 {[%emt 0:00:53]} O-O {[%emt 0:01:26]} 8. a4 {[%emt 0:01:06]} d6 {[%emt 0:00:35]} 9. Bc4 {[%emt 0:05:20]} (9. e4 $14) 9... axb5 $11 {[%emt 0:02:58]} 10. Bxb5 {[%emt 0:00:10]} Ba6 {[%emt 0:05:22]} 11. Ra3 {[%emt 0:06:06] White is slightly better.} Bxb5 {[%emt 0:06:55]} 12. Nxb5 {[%emt 0:07:29]} (12. axb5 Rxa3 13. bxa3 Qa5 $17) 12... Qd7 {[%emt 0:05:58]} 13. O-O {[%emt 0:02:08]} Qf5 {[%emt 0:05:03]} 14. Nc3 {[%emt 0:03:01]} (14. Nd2 $1 $14) 14... Ne4 {[%emt 0:09:32]} ({Black should try} 14... Na6 $11) 15. Nb5 {[%emt 0:05:42]} (15. Nh4 $14 Qe5 16. Qd3 Nxc3 17. bxc3) 15... Na6 {[%emt 0:04:16]} 16. Nh4 {[%emt 0:05:26]} Qf6 {[%emt 0:00:53] [#]} (16... Qc8 $11) 17. Qg4 {[%emt 0:04:27]} ({White has to play} 17. g3 $1 $16) 17... Qe5 {[%emt 0:00:40]} 18. Rd1 {[%emt 0:01:15]} h5 {[%emt 0:03:54]} (18... Nf6 $11 19. Qc4 Qe4) 19. Qe2 $16 {[%emt 0:00:21]} Nb4 {[%emt 0:05:06]} 20. Qc4 {[%emt 0:01:31]} (20. Nf3 $16 Qf5 21. Ne1) 20... e6 $36 {[%emt 0:08:55][%mdl 2048] Black fights for an advantage.} (20... Nxf2 $2 21. Kxf2 Qg5 (21... Qxh2 $2 22. Nf3 $18) 22. Nf3 $18) 21. f4 {[%emt 0:22:05]} (21. dxe6 $11 {remains equal.} d5 22. Qf1 (22. exf7+ $2 Rxf7 23. Nxg6 Qg5 $19)) 21... exd5 $17 {[%emt 0:03:38]} 22. fxe5 {[%emt 0:00:30]} (22. Qb3 $142 Qf6 23. Nf3) 22... dxc4 {[%emt 0:00:07]} 23. exd6 {[%emt 0:01:19]} (23. Nxd6 $17 Nxd6 24. exd6) 23... Nd3 $19 {[%emt 0:03:03]} 24. b3 {[%emt 0:01:49]} Nxc1 {[%emt 0:03:07]} ({Don't take} 24... cxb3 25. Rxd3 b2 (25... c4 26. Rd4 $17) 26. Bxb2 Bxb2 27. Ra2 $19) ({Better is} 24... Nc3 $19 25. Nxc3 (25. bxc4 $2 Nxc1 26. Nxc3 Bxc3 $19) 25... Bxc3 26. Rxd3 (26. bxc4 $2 Nxc1 27. e4 Bb2 $19) 26... cxd3) 25. Rxc1 $17 {[%emt 0:00:04]} cxb3 {[%emt 0:04:37]} 26. Rxb3 {[%emt 0:00:22]} Rxa4 {[%emt 0:00:05]} 27. Na3 $2 {[%emt 0:03:30][%mdl 8192] [#]} (27. Nf3 $17) 27... Nxd6 $19 {[%emt 0:00:59] Black is clearly winning.} 28. Nf3 {[%emt 0:01:47]} c4 {[%emt 0:00:13]} 29. Rb6 {[%emt 0:00:09]} Nc8 {[%emt 0:00:05] Weighted Error Value: White=0.70/Black=0.33.  Loses game:     	White=1     	---        Mistake:       	White=7     	Black=4      Inaccurate:     	---       	Black=1      OK:         	White=3     	Black=8      Best:        	White=2     	Black=4} ({Weaker is} 29... Rxa3 30. Rxd6 Rc8 (30... Rxe3 31. Rxc4 Bh6 32. Rdc6 $17) 31. Kf2 $19) 0-1

[Event "1000 GM Labor Day Super Swiss 2024"]
[Site "San Jose"]
[Date "2024.08.31"]
[Round "1.2"]
[White "Quesada Perez, Yasser"]
[Black "Bansal, Advay"]
[Result "1-0"]
[Annotator "TA"]
[ECO "B50"]
[WhiteElo "2581"]
[BlackElo "2234"]
[PlyCount "81"]
[EventDate "2024.08.30"]
[EventCountry "USA"]
[SourceTitle "playchess.com"]
[Source "ChessBase"]
[SourceQuality "1"]
[TimeControl "5400+30"]

{[%evp 10,81,8,0,0,0,10,8,10,23,10,10,45,0,34,25,28,27,27,14,26,29,24,21,18,28,27,0,0,0,0,6,16,13,13,3,33,26,26,21,23,27,79,89,93,103,104,104,98,72,218,213,244,78,181,149,361,361,348,328,304,214,226,193,358,373,367,357,431,400,660,458,528,528]} 1. e4 {[%emt 0:03:51]} c5 {[%emt 0:00:12]} 2. Nf3 {[%emt 0:00:14]} d6 {[%emt 0:00:11]} 3. c3 {[%emt 0:00:26]} Nf6 {[%emt 0:00:48]} 4. h3 {[%emt 0:00:06]} Nc6 {[%emt 0:00:25]} 5. Bd3 {[%emt 0:00:05][%cal Bf1d3,Bd3c2,Bc2a4][%mdl 32]} e5 {[%emt 0:00:58]} 6. Bc2 {[%emt 0:00:31]} d5 {[%emt 0:01:22]} 7. exd5 {[%emt 0:00:08]} Qxd5 {[%emt 0:00:06]} 8. Qe2 {[%emt 0:00:10]} Be6 {[%emt 0:01:01] The position is equal.} 9. d3 {[%emt 0:01:20]} O-O-O {[%emt 0:00:35]} 10. O-O {[%emt 0:03:32]} h6 {[%emt 0:00:33]} 11. Ba4 {[%emt 0:06:21]} e4 {[%emt 0:16:02]} 12. dxe4 {[%emt 0:02:45]} Qxe4 {[%emt 0:05:48]} 13. Qxe4 {[%emt 0:00:12]} Nxe4 {[%emt 0:00:04]} 14. Re1 {[%emt 0:00:47]} Nf6 {[%emt 0:06:17]} 15. Bxc6 {[%emt 0:00:46]} bxc6 {[%emt 0:00:03]} 16. Ne5 {[%emt 0:06:30]} Kb7 {[%emt 0:00:29]} 17. Na3 {[%emt 0:01:59][%cal Bb1a3,Ba3c4,Bc4a5][%mdl 32]} Bd6 {[%emt 0:02:04]} 18. Nec4 {[%emt 0:00:14]} Bc7 {[%emt 0:00:12]} 19. Be3 {[%emt 0:00:35]} Rd5 {[%emt 0:02:43]} 20. Nd2 {[%emt 0:04:02]} Rhd8 {[%emt 0:07:36]} 21. Nb3 {[%emt 0:04:29]} Bb6 {[%emt 0:02:37]} 22. Nc4 {[%emt 0:00:22]} g5 {[%emt 0:06:19]} 23. Nca5+ {[%emt 0:05:36] A dynamic duo of knights.} Kc7 {[%emt 0:03:18]} 24. c4 {[%emt 0:00:28][%cal Bc3c4,Bc4c5][%mdl 32]} Rd3 {[%emt 0:09:47]} 25. Bxc5 {[%emt 0:01:22] Threatens to win with Be7.} Nd7 {[%emt 0:02:37]} (25... Rb8 $1 $11 {remains equal.}) 26. Be7 $36 {[%emt 0:02:03][%mdl 2048] Keeping Black busy.} Rb8 {[%emt 0:01:20] [#]} 27. c5 $1 {[%emt 0:05:20] Chess con chili.} Bxa5 {[%emt 0:02:07]} 28. Nxa5 {[%emt 0:00:04] Hoping for Bd6+.} Rxb2 {[%emt 0:04:11]} 29. Bd6+ {[%emt 0:04:07]} Kc8 {[%emt 0:02:01]} (29... Rxd6 $16 {is a better defense.} 30. cxd6+ Kxd6) 30. Nxc6 $18 {[%emt 0:01:03]} Rdd2 {[%emt 0:01:29]} 31. Rf1 {[%emt 0:11:58] [#]} (31. Nxa7+ Kb7 32. c6+ Kxa7 $14) (31. Rab1 $18 Rxb1 32. Rxb1) 31... Bc4 {[%emt 0:02:38]} (31... Kb7 $16 32. Nd8+ Ka6) 32. Rfc1 {[%emt 0:00:08]} (32. Nxa7+ Kb7 33. Rfc1 Be6 (33... Bxa2 $2 34. c6+ Kxa7 35. cxd7 $18) 34. c6+ Kxa7 $14) 32... Bxa2 {[%emt 0:03:59]} (32... Be6 $16) 33. Nxa7+ {[%emt 0:05:57]} ({Not} 33. Ne7+ Kd8 $16) 33... Kd8 {[%emt 0:01:33]} 34. Nc6+ {[%emt 0:00:11][%cal Ba7c6,Bc6e7,Be7f5,Bf5g7][%mdl 32]} Kc8 {[%emt 0:00:23]} 35. Bg3 {[%emt 0:01:57]} ({Resist} 35. Ne7+ $6 Kd8 36. Nc6+ Kc8 $16) 35... h5 {[%emt 0:03:50]} 36. h4 {[%emt 0:01:02]} gxh4 {[%emt 0:00:10]} (36... f6 37. Ne7+ Kd8) 37. Ne7+ {[%emt 0:01:21]} ({Don't do} 37. Bxh4 Kc7 $18) 37... Kd8 {[%emt 0:00:14]} 38. Bxh4 {[%emt 0:00:05]} f6 {[%emt 0:01:09]} 39. Nf5 {[%emt 0:00:16]} Be6 {[%emt 0:02:55]} (39... Rbc2 $142 40. Rxc2 Rxc2) 40. Ng7 {[%emt 0:00:50]} Bd5 {[%emt 0:00:38]} 41. c6 {[%emt 0:00:13] Weighted Error Value: White=0.23 (precise) /Black=0.45.  Loses game:     	---       	Black=1      Missed win:     	White=1     	---        Mistake:       	---       	Black=5      Inaccurate:     	White=2     	Black=2      OK:         	White=17    	Black=7      Best:        	White=1     	Black=4      Strong:       	White=1     	---} 1-0

[Event "1000 GM Labor Day Super Swiss 2024"]
[Site "San Jose"]
[Date "2024.08.31"]
[Round "1.3"]
[White "Chinni, Rishabh"]
[Black "Corrales Jimenez, Fidel"]
[Result "0-1"]
[Annotator "TA"]
[ECO "B90"]
[WhiteElo "2220"]
[BlackElo "2564"]
[PlyCount "66"]
[EventDate "2024.08.30"]
[EventCountry "USA"]
[SourceTitle "playchess.com"]
[Source "ChessBase"]
[SourceQuality "1"]
[TimeControl "5400+30"]

{[%evp 17,66,33,28,21,16,32,37,0,29,18,11,22,20,14,33,20,22,4,43,10,16,-9,24,-7,0,-12,-20,-150,-139,-178,-152,-340,-321,-573,-687,-695,-695,-670,-702,-751,-745,-511,-536,-1165,-1118,-6195,-4822,-29987,-29988,-29987,-6721]} 1. e4 {[%emt 0:00:01]} c5 {[%emt 0:09:23]} 2. Nf3 {[%emt 0:00:05]} d6 {[%emt 0:00:07]} 3. d4 {[%emt 0:00:04]} cxd4 {[%emt 0:00:14]} 4. Nxd4 {[%emt 0:00:06]} Nf6 {[%emt 0:00:08]} 5. Nc3 {[%emt 0:00:10]} a6 {[%emt 0:00:22]} 6. f3 {[%emt 0:00:07]} e5 {[%emt 0:00:22]} 7. Nb3 {[%emt 0:00:04]} Be6 {[%emt 0:00:52]} 8. Be3 {[%emt 0:00:07]} Be7 {[%emt 0:00:14]} 9. Qd2 {[%emt 0:00:05]} h5 {[%emt 0:00:13]} 10. Nd5 {[%emt 0:00:07]} Bxd5 {[%emt 0:00:11]} 11. exd5 {[%emt 0:01:27]} Nbd7 {[%emt 0:00:07]} 12. Na5 {[%emt 0:00:25][%cal Oc2c4] White is slightly better.} Qc7 {[%emt 0:00:30]} 13. c4 {[%emt 0:00:27]} e4 {[%emt 0:00:45]} 14. Be2 {[%emt 0:02:04]} exf3 {[%emt 0:04:23]} (14... Ne5 {is more complex.} 15. Bd4 O-O 16. f4 e3) 15. gxf3 {[%emt 0:00:27]} O-O {[%emt 0:00:17]} 16. O-O {[%emt 0:02:44]} Rfe8 {[%emt 0:00:32]} 17. b4 {[%emt 0:01:07]} Bf8 {[%emt 0:00:25]} 18. Bd4 {[%emt 0:09:53]} g6 {[%emt 0:01:33]} 19. Rac1 {[%emt 0:00:54]} Bg7 {[%emt 0:00:13]} 20. Nb3 {[%emt 0:05:23]} b6 {[%emt 0:01:17]} 21. Rfd1 {[%emt 0:07:18]} a5 {[%emt 0:01:16]} 22. c5 {[%emt 0:10:13]} (22. bxa5 $11 bxa5 23. Be3) 22... bxc5 $1 $17 {[%emt 0:00:22]} (22... Nxd5 23. Bxg7 Kxg7 24. Qxd5 $16) 23. bxc5 {[%emt 0:00:04]} a4 {[%emt 0:00:10]} (23... Nxd5 $2 24. Bxg7 Kxg7 25. Qxd5 $18) 24. cxd6 $2 {[%emt 0:10:11] Now White is beyond hope.} (24. c6 $17 {was necessary.} axb3 25. cxd7 Qxd7 26. axb3) 24... Qxd6 $19 {[%emt 0:00:05]} 25. Nc5 {[%emt 0:00:04] [#]} (25. Bc4) 25... Ng4 $1 {[%emt 0:04:24][%mdl 512]} 26. fxg4 {[%emt 0:17:49] [#] Black must now prevent Bxg7.} Bxd4+ {[%emt 0:00:14]} (26... Qxd5 $2 {perishes.} 27. Bxg7 Qxd2 28. Rxd2 $18) 27. Qxd4 {[%emt 0:00:04]} Rxe2 {[%emt 0:00:06]} 28. Kf1 {[%emt 0:06:50]} Rxh2 {[%emt 0:01:14][%cal Od6g3] ( -> ...Qg3!)} 29. Nxd7 {[%emt 0:05:31]} Qxd7 {[%emt 0:00:09]} 30. Qe5 {[%emt 0:03:12] Prevents Qe7.} Rxa2 {[%emt 0:04:42]} (30... Rh1+ 31. Kf2 Rh3 (31... Rxd1 $2 32. Rxd1 Qxg4 33. Rd4 $19) 32. Rc3 Qxg4 (32... Rxc3 $2 33. Qxc3 Qxg4 34. Rd4 $19) 33. Rdc1 $19) 31. Rd4 {[%emt 0:04:05]} Re8 {[%emt 0:00:44]} 32. Qc7 {[%emt 0:00:53]} Qb5+ {[%emt 0:00:35]} 33. Qc4 {[%emt 0:00:32]} Qb2 {[%emt 0:00:09] Weighted Error Value: White=1.15/Black=0.04 (flawless) .  Loses game:     	White=1     	---        Mistake:       	White=2     	---        Inaccurate:     	White=4     	Black=3      OK:         	White=1     	Black=6      Best:        	White=1     	Black=1      Strong:       	---       	Black=1      Brilliant:      	---       	Black=1} (33... Rc8 $142 34. d6 Rxc4 35. Rdxc4 hxg4 36. Kg1 Qb6+ 37. Kh1 Rh2+ (37... Qxd6 {gets mated.} 38. R4c2 Rxc2 39. Rxc2 Qd1+ 40. Kh2 Qxc2+ 41. Kg3 Qd2 42. Kh4 Qe3 43. Kxg4 Kg7 44. Kh4 Qf3 45. Kg5 Qg3#) 38. Kxh2 Qf2+ (38... Qxd6+ $2 39. Kh1 $19) 39. Kh1 g3 40. Rc8+ Kg7 41. Rg8+ Kxg8 (41... Kf6 {is a self mate.} 42. Rh8 g2+ 43. Kh2 g1=R+ 44. Kh3 Qg3#) 42. Rc8+ Kg7 43. Rg8+ Kxg8 44. d7 Qh2#) 0-1

[Event "1000 GM Labor Day Super Swiss 2024"]
[Site "San Jose"]
[Date "2024.08.31"]
[Round "1.4"]
[White "Harsha Bharathakoti"]
[Black "Atwell, Rose"]
[Result "1-0"]
[Annotator "TA"]
[ECO "A20"]
[WhiteElo "2550"]
[BlackElo "2208"]
[PlyCount "73"]
[EventDate "2024.08.30"]
[EventCountry "USA"]
[SourceTitle "playchess.com"]
[Source "ChessBase"]
[SourceQuality "1"]
[TimeControl "5400+30"]

{[%evp 9,73,0,0,0,0,7,16,0,0,0,0,10,35,-43,-38,-35,-36,-30,-44,-41,56,63,73,72,81,66,92,106,104,122,94,91,113,60,295,216,247,124,189,185,187,196,186,165,136,148,148,157,154,148,176,150,284,272,332,271,529,499,730,733,732,727,798,795,916,822]} 1. c4 {[%emt 0:00:21]} e5 {[%emt 0:00:08]} 2. d3 {[%emt 0:02:26]} Nf6 {[%emt 0:01:34]} 3. Nf3 {[%emt 0:01:10]} Nc6 {[%emt 0:00:48]} 4. a3 {[%emt 0:05:16]} d5 {[%emt 0:02:47]} 5. cxd5 {[%emt 0:00:18]} Nxd5 {[%emt 0:00:06]} 6. e4 {[%emt 0:08:52]} Nf6 {[%emt 0:01:20]} 7. Be2 {[%emt 0:02:59]} a5 {[%emt 0:17:36]} 8. Qc2 {[%emt 0:05:45] The position is equal.} Bg4 {[%emt 0:12:29]} 9. Nbd2 {[%emt 0:02:41]} Be7 {[%emt 0:03:21]} 10. h3 {[%emt 0:04:48]} Bh5 {[%emt 0:03:07]} 11. b3 {[%emt 0:15:03]} ({Better is} 11. g4 $14 Bg6 12. Qb3) 11... O-O $15 {[%emt 0:05:27]} 12. Bb2 {[%emt 0:00:06]} Nd7 {[%emt 0:04:15]} 13. O-O {[%emt 0:02:57]} Bc5 {[%emt 0:07:58]} 14. Rfc1 {[%emt 0:09:19][%cal Of3e5]} Ba7 {[%emt 0:06:15] [#]} (14... Re8 $15) 15. b4 $1 {[%emt 0:06:59][%cal Bb3b4,Bb4b5][%mdl 32]} Bb6 {[%emt 0:07:05]} (15... Qe7 16. b5) 16. b5 {[%emt 0:02:23]} Na7 {[%emt 0:01:31]} 17. a4 {[%emt 0:07:26][%cal Od2c4]} (17. Bxe5 Nxe5 (17... Nxb5 18. Bxg7 Bxf3 19. Nxf3 $16) 18. Nxe5 Bxe2 $17) 17... Re8 {[%emt 0:03:31]} 18. Nc4 {[%emt 0:00:59]} Bxf3 {[%emt 0:01:10]} 19. Bxf3 {[%emt 0:00:06]} c6 {[%emt 0:00:49]} 20. Bg4 {[%emt 0:10:02]} Nf6 {[%emt 0:02:09]} 21. Nxe5 {[%emt 0:02:05]} (21. Bxe5 $16 cxb5 22. Nxb6 Qxb6 23. Bc7) 21... h5 $2 {[%emt 0:04:31] [#]} (21... Nxg4 $14 22. hxg4 (22. Nxg4 cxb5 23. d4 bxa4 $14) 22... cxb5) 22. Be2 {[%emt 0:02:21]} cxb5 {[%emt 0:02:01]} 23. Qb3 {[%emt 0:00:11]} (23. axb5 $18 {[%cal Od3d4] And now d4! would win.} Re6 24. Qa4) 23... Re6 {[%emt 0:02:42]} (23... Rxe5 $16 {keeps fighting.} 24. Bxe5 Nc6) 24. axb5 $18 {[%emt 0:00:35] Hoping for Nc4.} Qe8 {[%emt 0:00:29]} 25. Nf3 {[%emt 0:04:44]} Qxb5 {[%emt 0:03:31]} 26. Qxb5 {[%emt 0:00:10]} Nxb5 {[%emt 0:00:01]} 27. d4 {[%emt 0:00:04][%cal Bd3d4,Bd4d5][%mdl 32]} Nc7 {[%emt 0:02:40]} 28. Ng5 $36 {[%emt 0:00:55][%mdl 2048] Keeping Black busy.} Re7 {[%emt 0:01:03]} 29. Ba3 {[%emt 0:01:47] White is more active.} Rd7 {[%emt 0:00:51]} 30. d5 {[%emt 0:00:04] aiming for Rab1.} Bd4 {[%emt 0:01:19]} (30... Nce8 $16 31. Rd1 Bc7) 31. Rab1 {[%emt 0:00:03]} Rb8 {[%emt 0:01:28]} 32. Nf3 {[%emt 0:02:47]} Ba7 {[%emt 0:00:19]} (32... Bxf2+ 33. Kxf2 Nxe4+ 34. Kg1 (34. Ke3 Re8 $11) 34... Nxd5) 33. Ne5 {[%emt 0:00:07] White is clearly winning.} Nce8 {[%emt 0:01:57] Black is weak on the light squares} (33... Rdd8 $142 34. Nxf7 (34. Rxc7 Nxe4 35. Bf3 Bxf2+ 36. Kf1 Nd2+ 37. Kxf2 Nxb1 $18) 34... Kxf7 35. Rxc7+ Kg8) 34. Nxd7 {[%emt 0:00:05]} Nxd7 {[%emt 0:00:05]} 35. Bb5 {[%emt 0:01:02]} Ndf6 {[%emt 0:00:37]} 36. Rc4 {[%emt 0:00:51]} g6 {[%emt 0:00:35]} 37. Be7 {[%emt 0:00:17] Weighted Error Value: White=0.21 (precise) /Black=0.41.  Loses game:     	---       	Black=1      Mistake:       	White=3     	Black=5      Inaccurate:     	---       	Black=1      OK:         	White=11    	Black=11     Best:        	White=1     	Black=2} 1-0

[Event "1000 GM Labor Day Super Swiss 2024"]
[Site "San Jose"]
[Date "2024.08.31"]
[Round "1.5"]
[White "Guo, Andrew"]
[Black "Mikaelyan, Arman"]
[Result "1/2-1/2"]
[Annotator "TA"]
[ECO "A64"]
[WhiteElo "2207"]
[BlackElo "2529"]
[PlyCount "90"]
[EventDate "2024.08.30"]
[EventCountry "USA"]
[SourceTitle "playchess.com"]
[Source "ChessBase"]
[SourceQuality "1"]
[TimeControl "5400+30"]

{[%evp 27,90,11,19,14,27,0,48,41,52,23,18,-35,-13,-25,-19,-33,-26,-16,0,-23,-18,-25,8,0,20,-3,0,0,0,0,0,-11,33,33,34,30,41,40,31,28,76,68,235,223,319,323,530,535,514,524,501,457,463,454,691,664,526,319,269,277,428,406,477,0,0]} 1. d4 {[%emt 0:00:03]} Nf6 {[%emt 0:00:20]} 2. c4 {[%emt 0:00:05]} e6 {[%emt 0:00:13]} 3. g3 {[%emt 0:00:24]} c5 {[%emt 0:00:25]} 4. d5 {[%emt 0:00:34]} exd5 {[%emt 0:00:10]} 5. cxd5 {[%emt 0:00:05]} d6 {[%emt 0:00:14]} 6. Nc3 {[%emt 0:00:06]} g6 {[%emt 0:00:14]} 7. Bg2 {[%emt 0:00:04]} Bg7 {[%emt 0:00:08]} 8. Nf3 {[%emt 0:00:04]} O-O {[%emt 0:00:09]} 9. O-O {[%emt 0:00:02]} Nbd7 {[%emt 0:00:14]} 10. Nd2 {[%emt 0:02:14]} Re8 {[%emt 0:03:12]} 11. a4 {[%emt 0:02:02]} a6 {[%emt 0:01:42]} 12. a5 {[%emt 0:07:07]} Rb8 {[%emt 0:06:53]} 13. Nc4 {[%emt 0:02:26]} Ne5 {[%emt 0:01:55] A64: Modern Benoni: Fianchetto Variation: 9...Nbd7 10 Nd2 a6 11 a4 Re8.} 14. Nb6 {[%emt 0:01:09]} Nfd7 {[%emt 0:02:33]} 15. Nxc8 {[%emt 0:05:47]} Qxc8 {[%emt 0:04:52]} 16. h3 {[%emt 0:06:10]} Qc7 {[%emt 0:07:06]} (16... f5 $11) 17. Ra4 $14 {[%emt 0:01:22]} f5 {[%emt 0:03:08]} 18. e4 {[%emt 0:01:33]} c4 $146 {[%emt 0:03:08]} ({Predecessor:} 18... fxe4 19. Nxe4 Nf7 20. Qc2 Nf6 21. Nd2 Re7 22. Nc4 Rbe8 23. Be3 Ne5 24. b4 cxb4 25. Rxb4 Nxc4 26. Qxc4 Qxa5 {½-½ Bednar,M (2010)-Vesecky,M (1820) CZE-ch U16 Sec u Chrudimi 2008 (9)}) 19. Ra2 {[%emt 0:08:08]} (19. exf5 $11 gxf5 20. Qc2) 19... Nc5 {[%emt 0:01:47]} 20. exf5 {[%emt 0:01:00]} gxf5 {[%emt 0:00:14]} 21. Ne2 {[%emt 0:00:07]} Ned3 {[%emt 0:03:03]} 22. Be3 {[%emt 0:03:08]} Nb4 {[%emt 0:06:33]} (22... Nxb2 $6 23. Qc2 c3 24. Nd4 $14 (24. Qxf5 Qf7 $11) (24. Nxc3 Ncd3 $17)) 23. Ra1 {[%emt 0:02:31]} Bxb2 {[%emt 0:09:42]} 24. Rb1 {[%emt 0:02:15]} c3 {[%emt 0:03:21]} 25. Nd4 $1 {[%emt 0:00:48]} Qf7 {[%emt 0:00:25]} (25... Qxa5 $2 26. Nxf5 $18) 26. h4 {[%emt 0:09:04]} Ncd3 {[%emt 0:06:00]} (26... Nxd5 $2 27. Nxf5 Qxf5 28. Bxd5+ Ne6 29. Qb3 $18) 27. Bh3 {[%emt 0:02:38]} f4 $1 {[%emt 0:07:49]} (27... Re5 $2 28. Nxf5 Kh8 (28... c2 $2 29. Nh6+ Kf8 30. Qg4 $18) 29. Rxb2 cxb2 30. Bd4 Qxd5 31. Qd2 $18 (31. Bxe5+ $2 Nxe5 32. Ne3 Nf3+ 33. Kh1 Qxd1 $19) (31. f4 Rg8 $18)) 28. gxf4 $1 {[%emt 0:02:58]} (28. Be6 Rxe6 29. dxe6 Qg6 $17) 28... Kh8 {[%emt 0:02:13]} (28... Nxf4 $2 29. Qg4+ Kh8 (29... Ng6 $2 30. Nf5 $18) 30. Qxf4 $18 (30. Bxf4 $2 Re4 $19)) 29. Kh2 {[%emt 0:14:26]} (29. Be6 $5 Qf6 30. Qf3 $11) 29... Qf6 {[%emt 0:06:23]} (29... Qxd5 30. Rg1 Rg8 (30... Qxa5 $2 31. Bf5 $18) 31. Rg5 Rxg5 32. hxg5 $16) (29... Nxf4 $2 30. Ne6 Nfxd5 31. Bd4+ Nf6 32. Qf3 $18) (29... Re4 $5 30. Qf3 Rxf4 (30... Qxd5 $2 31. Bf5 $18) 31. Bxf4 Nxf4 $11) 30. Qf3 $1 {[%emt 0:02:12]} c2 {[%emt 0:05:27]} (30... Qxh4 $2 31. Ne6 Rxe6 32. dxe6 $18) 31. Rxb2 $1 {[%emt 0:00:59]} Rxe3 {[%emt 0:00:41]} ({Much worse is} 31... Nxb2 $6 32. Ne6 Rxe6 (32... Qxh4 33. Bd4+) 33. dxe6 $16) 32. fxe3 {[%emt 0:02:42]} Nxb2 {[%emt 0:00:07]} 33. Qe2 {[%emt 0:05:41]} Rg8 {[%emt 0:01:38]} (33... Nxd5 $11 {feels stronger.} 34. Nxc2 Nc3) 34. Nxc2 $16 {[%emt 0:01:23]} Qxh4 $2 {[%emt 0:05:15]} (34... Nxd5 $14 35. Rg1 Rxg1 36. Kxg1 Qc3) 35. Rf3 $1 $18 {[%emt 0:04:01]} Nxd5 {[%emt 0:01:09]} (35... N4d3 $142 36. Nd4 Rg6) 36. Nb4 $18 {[%emt 0:01:34]} Nc3 $2 {[%emt 0:03:22]} (36... Nf6 {is a better defense.}) 37. Qxb2 $18 {[%emt 0:01:06]} Qe1 {[%emt 0:00:04]} 38. Bg2 {[%emt 0:03:00]} Rg7 {[%emt 0:00:45]} 39. Qf2 {[%emt 0:05:14]} Qb1 {[%emt 0:00:57]} 40. Nc2 {[%emt 0:01:04]} Qb5 {[%emt 0:02:19]} (40... Ne4 $142 41. Qe2 Qa2) 41. Nd4 $18 {[%emt 0:00:53]} Qxa5 {[%emt 0:00:08]} 42. Qh4 {[%emt 0:00:48]} Ne4 {[%emt 0:00:17]} 43. Rf1 {[%emt 0:02:14]} Qd2 {[%emt 0:01:05] [#]} (43... Qa2 $142 44. Rg1 Nf2) 44. Rg1 $1 $18 {[%emt 0:00:20]} ({Stronger than} 44. Qh3 Rg3 45. Qc8+ Rg8 $11) 44... Nf2 {[%emt 0:02:30] [#]} 45. Qd8+ $2 {[%emt 0:00:39]} ({Only move:} 45. Nf3 $1 $18 {[%cal Rf3d2]} Qe2 46. Qd8+ Rg8 47. Qf6+ (47. Qxd6 Ng4+ 48. Kh3 Qxe3 $18) 47... Rg7 48. Qxd6 Ng4+ 49. Kh3) 45... Rg8 {[%emt 0:00:03]} 1/2-1/2